Cogmind - Beta 16 --- EXPLORER MODE // 2025.12.24 @ 14:41:11 Player: K.K.Y. Result: Destroyed by AA-95E(R) with Subdweller Beam Cannon Performance ------------- Evolutions (0) 0 Regions Visited (3) 600 Robots Destroyed (36) 180 Value Destroyed (702) 702 Prototype IDs (0) 0 Alien Tech Used (0) 0 Bonus (123) 123 TOTAL SCORE: 1605 Bonus ------- Follower Combat Kills 123 Cogmind --------- Core Integrity 0/250 Matter 295/300 Energy 14/100 System Corruption 0% Temperature Cool (9) Movement Core (200) Ox3 Location -10/Subcaves Parts ------- > --- POWER (1) -------- (None) > --- PROPULSION (2) --- (None) > --- UTILITY (3) ------ Medium Storage Unit > --- WEAPON (2) ------- Medium Laser > --- INVENTORY (10) --- Huge Storage Unit Compact Matter Pod (150) Sensor Array Light Armor Plating Peak State ------------ > --- POWER ------------ Light Nuclear Core > --- PROPULSION ------- Light Treads Light Treads > --- UTILITY ---------- Heat Sink Medium Storage Unit Structural Scanner > --- WEAPON ----------- Medium Laser Medium Laser > --- INVENTORY -------- Ion Engine Huge Storage Unit Light Armor Plating Medium Laser Mining Laser [Rating: 10] Favorites ----------- Power Ion Engine Engine Ion Engine Power Core Light Nuclear Core Propulsion Light Treads Treads Light Treads Utility Medium Storage Unit Device Structural Scanner Storage Medium Storage Unit Protection Light Armor Plating Weapon Medium Laser Energy Gun Medium Laser Ballistic Gun Assault Rifle Special Weapon Mining Laser Build | -11 -10 -10 -10 ------- Run | Yrd Mat Min Sub Slots Evolved 1 | . 1 . . Power . | . . . . Propulsion . | . . . . Utility 1 | . 1 . . Weapon . | . . . . Parts Attached 16 | 7 6 . 3 Power 2 | 1 1 . . Engine 1 | 1 . . . Core 1 | . 1 . . Reactor . | . . . . Propulsion 5 | 2 2 . 1 Treads 5 | 2 2 . 1 Leg . | . . . . Wheel . | . . . . Hover . | . . . . Flight . | . . . . Utility 4 | 2 2 . . Device 2 | 1 1 . . Storage 1 | 1 . . . Processor . | . . . . Hackware . | . . . . Protection 1 | . 1 . . Artifact . | . . . . Weapon 5 | 2 1 . 2 Energy Gun 3 | 1 1 . 1 Energy Cannon . | . . . . Ballistic Gun 1 | 1 . . . Ballistic Cannon . | . . . . Launcher . | . . . . Special Weapon 1 | . . . 1 Impact Weapon . | . . . . Slashing Weapon . | . . . . Piercing Weapon . | . . . . Special Melee Weapon . | . . . . Unidentified Prototypes . | . . . . Parts Lost 9 | . . 1 8 Power 1 | . . 1 . Propulsion 3 | . . . 3 Utility 2 | . . . 2 Weapon 3 | . . . 3 Highest Loss Streak 4 | . . 1 4 To Critical Strikes . | . . . . Average Backups 4 | 2 2 5 5 Power . | . . . . Propulsion . | . . . . Utility 2 | 1 1 3 4 Weapon 1 | 1 1 2 1 Tool/Special . | . . . . Unused Backups 8 | . 3 2 3 Power . | . . . . Propulsion 3 | . 2 1 . Utility 4 | . . 1 3 Weapon 1 | . 1 . . Tool/Special . | . . . . Average Slot Usage (%) 82 | . 97 92 58 Engine 2 | . 8 . . Core 2 | . 3 4 . Treads 20 | . 25 25 13 Device 20 | . 15 25 19 Storage 12 | . 12 12 12 Protection 1 | . 5 . . Energy Gun 20 | . 23 25 12 Peak Build Rating 10 | 7 10 10 7 Average Rating 6 | 6 8 8 4 On Entrance 6 | . 7 10 7 Avg Prop Armor Cover (%) . | . . . . Naked Turns . | . . . . Heaviest Build 23 | 20 23 21 16 Greatest Support 40 | 40 40 40 40 Greatest Overweight (x) 3 | 3 . . . Average Overweight (x) . | . . . . Largest Inventory Capacity 10 | 10 10 10 10 Average Capacity 9 | 9 10 10 10 Most Carried 7 | 6 6 6 7 Average Carried 4 | 2 2 5 5 Final Capacity 10 | 10 10 10 10 Final Carried 6 | 3 5 6 4 Class Distribution -------------------- 100% | Hacker-Mutant Dominant Class ---------------- Hacker-Mutant | -10/Materials Hacker-Mutant | -10/Mines Hacker-Mutant | -10/Subcaves Resources | -11 -10 -10 -10 ----------- Run | Yrd Mat Min Sub Matter Collected 390 | 294 87 . 9 Remotely . | . . . . Salvage Created 1127 | 167 491 252 217 Parts 66 | 14 29 13 10 Haulers Intercepted 2 | . 2 . . Recyclers Shooed 1 | . 1 . . Parts Field Recycled . | . . . . Retrieved Matter . | . . . . Parts Self-Destructed . | . . . . Prevented . | . . . . Parts Restored . | . . . . Kills | -11 -10 -10 -10 ------- Run | Yrd Mat Min Sub Combat Hostiles Destroyed 21 | . 10 6 5 Guns 20 | . 9 6 5 Classes Destroyed 9 | 2 6 1 . Worker 1 | . . 1 . Builder 1 | . 1 . . Tunneler 6 | 5 . 1 . Hauler 2 | . 2 . . Recycler 2 | 1 1 . . Watcher 3 | . 3 . . Swarmer 8 | . 6 2 . Grunt 6 | . 2 4 . Subdweller 7 | . 2 . 5 Best Kill Streak 4 | 2 4 2 1 Combat Bots Only 3 | . 3 2 1 Max Kills in Single Turn 2 | 1 2 2 1 Gunslinging 1 | . 1 1 . Exploded . | . . . . Melee . | . . . . Uniques/NPCs Destroyed . | . . . . Combat | -11 -10 -10 -10 -------- Run | Yrd Mat Min Sub Hostile Shots Fired 134 | . 52 21 61 Missed 35 | . 15 8 12 Hits 99 | . 37 13 49 Projectile 99 | . 37 13 49 Critical Strikes 2 | . . . 2 Damage Taken 1132 | . 327 106 699 Core 255 | . 48 7 200 Absorbed by Shields . | . . . . Ignored by Resistances 693 | . 209 67 417 Core Remaining (%) 100 | 100 . . . Volleys Fired 101 | 8 35 15 43 Largest 2 | 2 2 2 2 Hottest 150 | 70 100 100 150 Shots Fired 155 | 16 63 30 46 Gun 152 | 16 63 30 43 Cannon . | . . . . Launcher . | . . . . Special 3 | . . . 3 Kinetic 17 | 8 9 . . Thermal 138 | 8 54 30 46 Explosive . | . . . . Electromagnetic . | . . . . Robot Hit Streak 33 | 14 33 14 30 Robot Miss Streak 2 | . 2 1 1 Penetration Max . | . . . . Secondary Targets 4 | . 3 1 . Max Gunslinging Chain 1 | . 1 1 . Shots Hit Robots 131 | 14 50 26 41 Core Hits 55 | 7 24 14 10 Critical Kills . | . . . . Critical Parts Destroyed . | . . . . Critical Strikes 15 | 1 13 . 1 Burn 15 | 1 13 . 1 Melee Attacks . | . . . . Impact . | . . . . Slashing . | . . . . Piercing . | . . . . Sneak Attacks . | . . . . Combat Hostiles . | . . . . Follow-up Attacks . | . . . . Damage Inflicted 1631 | 171 622 330 508 Guns 1583 | 171 622 330 460 Cannons . | . . . . Explosions . | . . . . Melee . | . . . . Ramming . | . . . . Kinetic 121 | 72 49 . . Thermal 1510 | 99 573 330 508 Explosive . | . . . . Electromagnetic . | . . . . Impact . | . . . . Slashing . | . . . . Piercing . | . . . . Highest Corruption . | . . . . Average Corruption . | . . . . Corruption Purged . | . . . . Corruption Blocked . | . . . . Overload Shots . | . . . . Overflow Damage . | . . . . Projectiles . | . . . . Explosions . | . . . . Melee . | . . . . Knockbacks . | . . . . Impact . | . . . . Kinetic . | . . . . Secondary . | . . . . Self-Inflicted Damage . | . . . . Shots . | . . . . Rammed . | . . . . Targets Rammed . | . . . . Kicked . | . . . . Crushed . | . . . . Highest Temperature 273 | 18 273 135 159 Average Temperature 64 | 8 77 51 84 Received Heat Transfer 546 | . 39 93 414 Effects 3 | . 3 . . Interference 3 | . 3 . . Siege Activations . | . . . . Martial Activations . | . . . . Shielding Activations . | . . . . Robots Disrupted . | . . . . Combat Hostiles . | . . . . Robots Corrupted . | . . . . Combat Hostiles . | . . . . Parts Fried . | . . . . Impact Corruptions . | . . . . Robots Melted 1 | . 1 . . Combat Hostiles 1 | . 1 . . Parts Melted 11 | . 7 1 3 Heat Transferred 5539 | 370 2664 962 1543 Parts Sabotaged . | . . . . Parts Stolen . | . . . . Parts Stripped . | . . . . Power Chain Reactions . | . . . . Alert | -11 -10 -10 -10 ------- Run | Yrd Mat Min Sub Maximum Alert Level . | . . . . Low Security (%) 100 | 100 100 100 . Level 1 . | . . . . Level 2 . | . . . . Level 3 . | . . . . Level 4 . | . . . . Level 5 . | . . . . High Security . | . . . . Max Security . | . . . . Peak Influence 57 | 10 57 50 . Initial . | . . . . Average 5 | 1 8 3 . Influence Increases 445 | 30 235 160 20 Destroy 0b10 Robot/C 300 | . 160 120 20 Destroy 0b10 Robot/NC 75 | 30 35 10 . Destroy Leader 70 | . 40 30 . Influence Decreases 445 | 30 235 160 20 Time Decay 435 | 30 235 150 20 Lost Part 10 | . . 10 . Squads Dispatched . | . . . . Investigation . | . . . . Extermination . | . . . . Reinforcement . | . . . . Assault . | . . . . Garrison . | . . . . Intercept . | . . . . Searches Triggered . | . . . . Construction Impeded . | . . . . Haulers Reinforced . | . . . . Active Scanning Responses . | . . . . Cargo Convoy Interrupts . | . . . . Stealth | -11 -10 -10 -10 --------- Run | Yrd Mat Min Sub Distress Signals 2 | . 2 . . Communications Jammed . | . . . . Distress Signals . | . . . . Times Spotted 32 | . 16 6 10 Peak Tracking Total 6 | . 6 2 2 Tactical Retreats . | . . . . Traps | -11 -10 -10 -10 ------- Run | Yrd Mat Min Sub Traps Triggered . | . . . . Indirectly . | . . . . Trap Hack Attempts . | . . . . Triggered . | . . . . Disarmed . | . . . . Reprogrammed . | . . . . Reused . | . . . . Traps Extracted . | . . . . Installed . | . . . . Triggered . | . . . . Machines | -11 -10 -10 -10 ---------- Run | Yrd Mat Min Sub Machines Disabled . | . . . . Max in Single Turn . | . . . . Machines Repaired . | . . . . Machines Dismantled . | . . . . Machines Sabotaged . | . . . . Overloaded Fab Kills . | . . . . Hacking | -11 -10 -10 -10 --------- Run | Yrd Mat Min Sub Machines Accessed 1 | . 1 . . Terminals 1 | . 1 . . Fabricators . | . . . . Repair Stations . | . . . . Recycling Units . | . . . . Scanalyzers . | . . . . Garrison Access . | . . . . Total Hacks 2 | . 2 . . Successful . | . . . . Failed 2 | . 2 . . Catastrophic . | . . . . Database Lockouts . | . . . . Manual 2 | . 2 . . Terminals 2 | . 2 . . Fabricators . | . . . . Repair Stations . | . . . . Recycling Units . | . . . . Scanalyzers . | . . . . Garrison Access . | . . . . Terminal Hacks . | . . . . Fabricator Hacks . | . . . . Repair Station Hacks . | . . . . Recycling Unit Hacks . | . . . . Scanalyzer . | . . . . Garrison Access Hacks . | . . . . Unauthorized Hacks . | . . . . Terminals . | . . . . Fabricators . | . . . . Repair Stations . | . . . . Recycling Units . | . . . . Scanalyzers . | . . . . Garrison Access . | . . . . Data Cores Recovered . | . . . . Used . | . . . . Hacking Detections . | . . . . Full Trace Events . | . . . . Feedback Events . | . . . . Feedback Blocked . | . . . . Robot Schematics Acquired . | . . . . Robots Built . | . . . . Authchips . | . . . . Time . | . . . . Total Robot Build Rating . | . . . . Part Schematics Acquired . | . . . . Parts Built . | . . . . Authchips . | . . . . Time . | . . . . Total Part Build Rating . | . . . . Part Studies Acquired . | . . . . Parts Repaired . | . . . . Time . | . . . . Parts Recycled . | . . . . Recycled Matter . | . . . . Retrieved Matter . | . . . . Retrieved Components . | . . . . Parts Scanalyzed . | . . . . Part Schematics Acquired . | . . . . Parts Damaged . | . . . . Bothacking | -11 -10 -10 -10 ------------ Run | Yrd Mat Min Sub Used RIF Installer . | . . . . Robots Hacked . | . . . . Non-combat . | . . . . Combat . | . . . . Robot Hacks Applied . | . . . . Relay Couplers Released . | . . . . Fabnet Peak Effective % . | . . . . Robots Rewired . | . . . . Allies Hacked . | . . . . Hacks Repelled . | . . . . Allies | -11 -10 -10 -10 -------- Run | Yrd Mat Min Sub Total Allies 3 | . . 3 . Largest Group 3 | . . 3 3 Highest-Rated Group 40 | . . 40 40 Highest-Rated Ally 16 | . . 16 16 Total Orders . | . . . . Ally Attacks 46 | . . . 46 Total Damage 435 | . . . 435 Kills 4 | . . . 4 Allies Corrupted . | . . . . Allies Melted . | . . . . Intel | -11 -10 -10 -10 ------- Run | Yrd Mat Min Sub Active Infowar (turns) 3190 | 168 944 1044 1034 Structural 3190 | 168 944 1044 1034 Robot Analysis Total . | . . . . Derelict Logs Recovered 1 | . . 1 . Drone Launches . | . . . . Drone Recoveries . | . . . . Exploration | -11 -10 -10 -10 ------------- Run | Yrd Mat Min Sub Turns Passed 3233 | 193 944 1044 1052 Spaces Moved 1693 | 109 495 595 494 Core 22 | 22 . . . Treads 1671 | 87 495 595 494 Legs . | . . . . Wheels . | . . . . Hover . | . . . . Flight . | . . . . Fastest Speed 50 | 50 160 160 160 Average Speed 158 | 140 160 160 160 Slowest Speed 200 | 200 160 160 160 Overloaded Moves . | . . . . Propulsion Burnouts . | . . . . Robots Hopped . | . . . . Potential Cave-ins . | . . . . Cave-ins Triggered . | . . . . Exploration Rate (%) 48 | 4 76 91 24 Regions Visited 3 Branch Regions 2 Pre-discovered Areas 2 | . . 2 . Known Exits Taken 3 | 1 1 1 . Unknown Exits Taken . | . . . . Scrap Searched 3 | . . 3 . Spaces Dug . | . . . . Terrain Destroyed . | . . . . Melee . | . . . . Projectile . | . . . . AOE . | . . . . Terrain Rammed . | . . . . Walls Destroyed . | . . . . Machines Disabled . | . . . . Actions | -11 -10 -10 -10 --------- Run | Yrd Mat Min Sub Total 2081 | 132 586 658 705 Wait 241 | . 33 44 164 Move 1690 | 108 494 594 494 Hop . | . . . . Pick Up 23 | 9 10 3 1 Fast Attach 1 | 1 . . . Attach 11 | 6 2 . 3 Detach 1 | . 1 . . Swap 4 | . 4 . . Drop 9 | . 7 2 . Fire 101 | 8 35 15 43 Melee . | . . . . Ram . | . . . . Kick . | . . . . Crush . | . . . . Escape Stasis . | . . . . Rewire . | . . . . Trap . | . . . . Miscellaneous . | . . . . Route ------- -11/Scrapyard -10/Materials (discovered 4 exits: *Mat x2 / *Min / *Sub) -10/Mines (discovered 3 exits: *Mat / Exi / *Sub) -10/Subcaves (discovered 2 exits: *Mat x2) History --------- Turn | Location | Event 6 | -11/Scrapyard | Identified exit to Materials 6 | -11/Scrapyard | Discovered exit to Materials (range 15) 194 | -11/Scrapyard | Entered Materials 194 | -10/Materials | Evolved 1 slot: Utility x1 300 | -10/Materials | Build established: Hacker-Mutant 366 | -10/Materials | Identified exit to Subcaves 366 | -10/Materials | Discovered exit to Subcaves (range 10) 398 | -10/Materials | Identified exit to Mines 398 | -10/Materials | Discovered exit to Mines (range 9) 567 | -10/Materials | Identified exit to Materials 567 | -10/Materials | Discovered exit to Materials (range 14) 794 | -10/Materials | Derelicts attacked the area 1000 | -10/Materials | Discovered exit to Materials (range 10) 1138 | -10/Materials | Entered Mines 1218 | -10/Mines | Discovered exit to Materials (range 3) 1347 | -10/Mines | Found a Scrap Suit stashed away for nefarious purposes 1366 | -10/Mines | Learned location of Storage (-7) 1382 | -10/Mines | Found a hidden stash of uninstalled traps 1405 | -10/Mines | Discovered exit to Subcaves (range 10) 1601 | -10/Mines | Assisted by bots powering up and referring to "LRC-V3" 2022 | -10/Mines | Deemed a non-threat by the Exiles lab entrance 2022 | -10/Mines | Identified exit to Exiles 2022 | -10/Mines | Discovered exit to Exiles (range 6) 2182 | -10/Mines | Entered Subcaves 2182 | -10/Subcaves | Accompanied by 3 allies 2190 | -10/Subcaves | Ambushed by Subdwellers from Twisted Machinery 2220 | -10/Subcaves | Core integrity fell below 50% 2257 | -10/Subcaves | A swath of the cavern ceiling suddenly collapsed 2306 | -10/Subcaves | Ambushed by angry Subdweller bent on revenge 2450 | -10/Subcaves | A swath of the cavern ceiling suddenly collapsed 2748 | -10/Subcaves | Identified exit to Materials 2748 | -10/Subcaves | Discovered exit to Materials (range 5) 2759 | -10/Subcaves | Discovered exit to Materials (range 9) 3204 | -10/Subcaves | Disturbed a concealed Subdweller 3207 | -10/Subcaves | Core integrity fell below 20% 3234 | -10/Subcaves | Destroyed by AA-95E(R) with Subdweller Beam Cannon Last Messages --------------- 02775_ P1-V2P(R) destroyed. 02798_ Heat Sink destroyed. 02813_ Y-45 Defender destroyed. 02821_ Acquired Lgt. Treads. 02827_ Acquired 9 matter. 02853_ G6-FJP(R) destroyed. 02874_ Trooper 1a destroyed. 02889_ 9G-7ZN(R) suffers critical hit (Burn). 02893_ Lgt. Treads destroyed. 02893_ Sub. Machine Gun melted. 02893_ 9G-7ZN(R) destroyed. 03204_ AA-95E(R) angrily emerges from the Twisted Machinery. 03205_ AA-95E(R): "YOUGO!" 03208_ AA-95E(R) affixes Scrap Shield Fragment to Scrap Shield. 03216_ Structural Scanner destroyed. 03218_ Mining Laser destroyed. 03218_ Med. Laser destroyed. 03224_ Lgt. Treads destroyed. Map ----- +----------------------------------------------------+ | # #" ## #### ######??????????????? | | ## ##### ###########???????????????? | | ### ####### #### ####?????????????????? | | ### ##?##### ##?????????????????? | | #### ######### ##?????????????????? | | ########### ###?????????????????? | | ####### ### ## ####?????????????????? | | %### ##### ### ####??????????????????? | | #####%####### #### #####??????????????????? | | ## ############# ###########?????????????????? | | #######?### ### ###### ####????????????????? | | #######??## ### ##### ####???????????????? | | ##???## ## #### ####??????????????? | | ##???## ## ####?????????????? | | ######## ###?????????????? | | % ######### ## ##?????????????? | | #### ### ##?????????????? | | ## ## ####### ## ###?????????????? | | %### ###### #### ###?????????????? | | #### ###?## ###### ##??????????????? | | ######### ##?########## ##??????????????? | | ######### % ############## ##??????????????? | | ##????### ####?????#### ###??????????????? | | ###?######% ########### % #####????????????? | | ######### ########; ####????????????? | | ##### ### @R ## ##????????????? | | #### % ### ####????????????? | | ""### # ##"## #####????????????? | | ""# ############ #" "&# #####????????????? | | ############### #"$$$# ##????????????? | | ###??#####?#### #$"$"# ##????????????? | | ## ###??########### ##""## ##????????????? | | # ###??### ###### #### ##????????????? | | #### ##??##% ### % ### ###????????????? | | ### ###### ####% < # ######????????????? | | ?## ######### % ## ! ######?????????????? | | ?### ## ####### % ###%!##?????????????????? | | ?### ## ####=####????????????????? | | ?## % ## %##&%*###????????????????? | | ?#### # # ### ! " ####??????????????? | | ?########### #### " "###?????????????? | | ???######### ### ## ""< ##?????????????? | | ??????????### #### ## " ###?????????????? | | ??????????#### # ###### ""####?????????????? | | ??????????? # ###### #####??????????????? | | ???????????? # " ????# ####???????????????? | | ???????????? ######""?????"""##?????????????????? | | ??????????? # ####""??????""##?????????????????? | | ??????????? ???? ""?????? ##?????????????????? | | ????????? ??????????????? ##?????????????????? | +----------------------------------------------------+ Best States ------------- Heat Dissipation 35 Energy Generation 14 Energy Capacity 250 Matter Stores 300 Matter Capacity 300 Sight Range 16 Terrain Scan Density 10 Armor Coverage 150 Resistance: KI 35 Resistance: TH 35 Resistance: EX 35 Resistance: EM 35 Resistance: I 35 Resistance: S 35 Resistance: P 35 Evasion (%) 50 Recoil Reduction 2 Offensive Hacking 20 Item Schematics ----------------- None Robot Schematics ------------------ None Fabricated ------------ Nothing Repaired ---------- Nothing Studied --------- None Alien Tech Used ----------------- None Achievements -------------- None Challenges ------------ None Game ------ Seed PhysicsGatlingBeacon Manual? 0 Play Time 00:14:44 Cumulative 224.3 hours Start 2025.12.24 @ 14:30:02 End 2025.12.24 @ 14:41:11 Sessions 1 Manual Loads 0 Difficulty Explorer Special Mode None Game No. 343 Rogue 0 Adventurer 0 Explorer 343 Win Type - Total 0 Types 0/0/0/0/0/0/0/0/0/0 Lore% 71 Gallery% 68 Achievement% 53 Wizard Run 0 Options --------- Layout 1 ASCII 0 Keyboard 0 Movement Mouse Keybinds 0 Fullscreen 1 Font 24/Smallcaps Map View 50x35 Zoom Use 0% Tactical HUD 1 Map Filters NONE Filters NONE Steam 1 RUN: 343c43ac-660f-4932-8079-63876ed01a80